Cogmind - Beta 12 @@@ ROGUE MODE // 2023.09.13 @ 22:12:28 Player: DuckBoy Result: Destroyed by G-73 Enforcer with Phase Gun Performance ------------- Evolutions (9) 4500 Regions Visited (27) 5400 Robots Destroyed (414) 2070 Value Destroyed (16262) 16262 Prototype IDs (42) 840 Alien Tech Used (0) 0 Bonus (5778) 5778 TOTAL SCORE: 34850 Bonus ------- High Alert Combat Kills 1773 Follower Combat Kills 1160 Entered Garrisons 600 Used RIF Installer 1500 Entered DSFs 500 Aligned with FarCom 300 Friendly Fire -55 Cogmind --------- Core Integrity 0/1600 Matter 37/300 Energy 98/100 System Corruption 8% Temperature Cool (0) Movement Core (50) Location -1/Access Parts ------- > --- POWER (2) -------- (None) > --- PROPULSION (5) --- (None) > --- UTILITY (14) ----- Enhanced Optical Array Experimental Signal Interpreter Experimental Terrain Scan Processor Graphene Brace Hacking Suite > --- WEAPON (4) ------- (None) > --- INVENTORY (5) ---- Light Ion Engine Backup Power VII Signal Interpreter Advanced System Restoration Module Improved Remote Datajack Peak State ------------ > --- POWER ------------ Backup Power VII Backup Power VII > --- PROPULSION ------- Xenon Bombardment Thruster Field Propulsion Drive Field Propulsion Drive Electron Diverter > --- UTILITY ---------- Enhanced Optical Array Signal Interpreter Experimental Signal Interpreter Advanced Terrain Scanner Experimental Terrain Scan Processor Advanced Targeting Computer Graphene Brace Hacking Suite Hacking Suite Hacking Suite Authchip [R/Combat] Relay Coupler [NC] > --- WEAPON ----------- Hypervelocity Coil Gun Hypervelocity Coil Gun Improved Remote Datajack Falx > --- INVENTORY -------- Light Ion Engine Signal Interpreter Advanced System Restoration Module Hypervelocity Coil Gun [Rating: 114] Favorites ----------- Power Backup Power III Engine Backup Power III Power Core Enhanced Nuclear Core Propulsion Flexi-carbon Leg Treads Light Treads Leg Flexi-carbon Leg Hover Unit Combat Gravmag System Flight Unit Xenon Bombardment Thruster Utility Hacking Suite Device Graphene Brace Storage Large Storage Unit Processor Advanced Targeting Computer Hackware Hacking Suite Protection Hardened Medium Armor Plating Weapon Enhanced Autogun Energy Gun Gatling Laser Energy Cannon Cooled Particle Cannon Ballistic Gun Enhanced Autogun Ballistic Cannon Hypervelocity Mass Driver Launcher Smartbomb Launcher Special Weapon Remote Datajack Slashing Weapon Great Axe Piercing Weapon Kinetic Spear Special Melee Weapon Improved Datajack Build | -11 -10 -9 -9 -9 -8 -8 -8 -8 -7 -7 -7 -6 -6 -6 -6 -5 -5 -5 -5 -5 -5 -4 -4 -4 -3 -2 -1 ------- Run | Jun Mat Mat Min Exi Min Mat Gar Mat Fac Gar Fac Fac Was Fac Gar Fac Was Fac Upp Upp War Pro Fac DSF Res Res Acc Slots Evolved 18 | . . 2 . . . 2 . . 2 . . 2 . . . 2 . . . . . . 2 . 2 2 2 Power 1 | . . . . . . . . . . . . 1 . . . . . . . . . . . . . . . Propulsion 3 | . . 1 . . . . . . . . . . . . . 1 . . . . . . . . . . 1 Utility 12 | . . . . . . 1 . . 2 . . 1 . . . 1 . . . . . . 2 . 2 2 1 Weapon 2 | . . 1 . . . 1 . . . . . . . . . . . . . . . . . . . . . Parts Attached 330 | 7 11 14 4 2 . 26 12 9 16 19 34 27 5 26 6 32 1 31 . 3 . 1 . 6 25 2 11 Power 32 | 1 1 . 2 . . 7 1 1 2 . 2 2 . 2 . 2 . 3 . . . . . . 5 . 1 Engine 28 | 1 1 . 2 . . 6 1 1 . . 2 2 . 2 . 2 . 3 . . . . . . 5 . . Core 4 | . . . . . . 1 . . 2 . . . . . . . . . . . . . . . . . 1 Reactor . | . . . . . . . . . . . . . . . . . . . . . . . . . . . . Propulsion 65 | 3 3 5 1 1 . 4 1 5 2 1 5 6 . 9 1 4 . 4 . . . . . 3 2 . 5 Treads 3 | 3 . . . . . . . . . . . . . . . . . . . . . . . . . . . Leg 51 | . 3 5 1 1 . 4 1 5 2 1 5 6 . 9 1 4 . 2 . . . . . . . . 1 Wheel . | . . . . . . . . . . . . . . . . . . . . . . . . . . . . Hover 2 | . . . . . . . . . . . . . . . . . . . . . . . . . . . 2 Flight 9 | . . . . . . . . . . . . . . . . . . 2 . . . . . 3 2 . 2 Utility 101 | 1 4 4 . 1 . 5 4 2 5 6 10 7 4 6 . 12 . 14 . 3 . 1 . 3 7 1 1 Device 35 | . 2 . . . . 1 2 . 1 1 2 2 3 1 . 9 . 6 . 1 . . . 1 2 . 1 Storage 7 | 1 2 1 . 1 . . . . . . . . . 1 . . . . . . . . . . 1 . . Processor 12 | . . . . . . 1 . . 1 1 1 1 . . . . . 2 . 1 . 1 . . 3 . . Hackware 32 | . . . . . . . . . 3 2 5 3 1 4 . 3 . 6 . 1 . . . 2 1 1 . Protection 15 | . . 3 . . . 3 2 2 . 2 2 1 . . . . . . . . . . . . . . . Artifact . | . . . . . . . . . . . . . . . . . . . . . . . . . . . . Weapon 132 | 2 3 5 1 . . 10 6 1 7 12 17 12 1 9 5 14 1 10 . . . . . . 11 1 4 Energy Gun 9 | . . . . . . . . . . . 4 . . 2 1 1 . 1 . . . . . . . . . Energy Cannon 28 | . . . . . . 1 2 . . 5 5 8 . 4 2 . . . . . . . . . . . 1 Ballistic Gun 50 | 2 3 5 1 . . 9 4 1 5 5 3 . . . . 1 . 2 . . . . . . 7 . 2 Ballistic Cannon 13 | . . . . . . . . . . . . . 1 2 2 5 1 1 . . . . . . . . 1 Launcher 4 | . . . . . . . . . . . 1 . . . . 1 . 1 . . . . . . 1 . . Special Weapon 19 | . . . . . . . . . 2 2 2 4 . . . 4 . 2 . . . . . . 2 1 . Impact Weapon . | . . . . . . . . . . . . . . . . . . . . . . . . . . . . Slashing Weapon 4 | . . . . . . . . . . . 2 . . . . . . 1 . . . . . . 1 . . Piercing Weapon 1 | . . . . . . . . . . . . . . . . 1 . . . . . . . . . . . Special Melee Weapon 4 | . . . . . . . . . . . . . . 1 . 1 . 2 . . . . . . . . . Unidentified Prototypes 17 | . . 1 . . . 1 . . 1 . 4 1 . 2 . 2 . . . . . . . . 4 . 1 Parts Lost 71 | . 5 1 . . . 2 1 1 1 3 6 4 . 3 4 6 . 11 . . . . . 4 . 1 18 Power 12 | . 1 . . . . 1 . . . . 1 . . 2 1 2 . 2 . . . . . 1 . . 1 Propulsion 18 | . 2 . . . . . 1 . . . . 1 . . 1 1 . 3 . . . . . . . . 9 Utility 20 | . 1 . . . . 1 . 1 1 1 1 2 . 1 . 1 . 2 . . . . . 2 . 1 5 Weapon 21 | . 1 1 . . . . . . . 2 4 1 . . 2 2 . 4 . . . . . 1 . . 3 Highest Loss Streak 10 | . 4 1 . . . 1 1 1 1 2 2 3 . 1 2 3 . 10 . . . . . 4 . 1 5 To Critical Strikes . | . . . . . . . . . . . . . . . . . . . . . . . . . . . . Average Slot Usage (%) 92 | . 93 98 98 100 100 96 96 90 99 88 93 92 89 92 98 94 82 81 64 67 70 75 68 73 80 89 52 Engine 7 | . 12 11 9 11 11 7 9 1 . 6 6 12 13 8 12 8 5 8 5 5 5 5 5 4 4 . . Leg 21 | . 7 32 33 33 33 27 26 27 23 23 22 19 20 19 19 22 23 14 . . . . . . . . 1 Device 2 | . 10 . . . . 3 2 . . 7 1 1 2 2 . 2 . 2 . . . . . 5 7 7 4 Storage 6 | . 14 11 11 11 11 9 9 9 7 7 7 6 6 6 6 5 5 3 . . . . . . . . . Processor 6 | . . . . . . 5 9 9 6 6 7 13 13 9 6 2 . 1 5 5 5 10 10 10 14 21 18 Hackware 15 | . . . . . . . . . 20 2 17 13 13 18 26 27 29 29 23 25 29 29 26 27 18 20 9 Protection 2 | . . 10 11 11 11 9 6 8 1 3 2 . . . . . . . . . . . . . . . . Energy Gun 2 | . . . . . . . . . . . 7 4 . 5 3 . . 2 . . . . . . . . . Energy Cannon 5 | . . . . . . . 5 . . 2 4 11 13 16 19 7 . . . . . . . . . . . Ballistic Gun 12 | . 27 32 32 33 33 34 28 35 25 24 4 . . . . 2 . . . . . . . . 8 7 4 Special Weapon 2 | . . . . . . . . . 4 1 4 1 6 . . 2 5 4 5 5 5 5 5 . 1 . . Naked Turns . | . . . . . . . . . . . . . . . . . . . . . . . . . . . . Heaviest Build 69 | 11 27 39 39 37 37 49 50 47 48 58 57 58 62 63 60 69 56 56 19 19 19 19 19 19 30 26 27 Greatest Support 80 | 40 40 39 39 39 39 45 45 54 54 54 54 54 54 60 60 80 80 80 19 19 19 19 19 27 28 28 30 Greatest Overweight (x) 5 | . 2 1 . . . 1 1 1 . 1 1 1 1 1 1 . . 5 . . . . . 1 1 . 1 Average Overweight (x) . | . . . . . . . . . . . . . . . . . . . . . . . . . . . . Largest Inventory Capacity 15 | 8 15 15 15 15 15 15 15 15 15 15 15 15 15 15 15 15 15 15 5 5 5 5 5 5 10 5 5 Average Capacity 14 | 6 11 14 15 15 15 15 15 15 15 15 15 15 15 15 15 15 15 11 5 5 5 5 5 5 5 5 5 Most Carried 15 | 1 5 15 15 15 15 15 15 15 15 15 15 15 15 15 15 15 13 13 5 5 5 5 5 5 5 5 5 Average Carried 13 | . 2 13 14 15 15 14 14 15 14 14 13 14 14 14 14 13 13 8 5 5 5 5 5 4 3 4 4 Final Capacity 15 | 8 10 15 15 15 15 15 15 15 15 15 15 15 15 15 15 15 15 5 5 5 5 5 5 5 5 5 5 Final Carried 15 | 1 5 15 15 15 15 15 15 15 15 15 15 15 15 15 15 13 13 5 5 5 5 5 5 5 4 5 5 Class Distribution -------------------- 21% | Bothacker-Mutant 17% | Hacker-Mutant 16% | Mutant 15% | Skirmisher 13% | Hacker-Skirmisher 6% | Bothacker-Skirmisher 5% | Tank Dominant Class ---------------- Mutant | -10/Materials Tank | -9/Materials Tank | -9/Mines Tank | -9/Exiles Skirmisher | -8/Mines Skirmisher | -8/Materials Mutant | -8/Garrison Skirmisher | -8/Materials Hacker-Skirmisher | -7/Factory Mutant | -7/Garrison Bothacker-Mutant | -7/Factory Mutant | -6/Factory Mutant | -6/Waste Hacker-Mutant | -6/Factory Bothacker-Skirmisher | -6/Garrison Bothacker-Mutant | -5/Factory Bothacker-Mutant | -5/Waste Hacker-Mutant | -5/Factory Mutant | -5/Upper Caves Mutant | -5/Upper Caves Hacker-Mutant | -5/Warlord Hacker-Mutant | -4/Proximity Caves Hacker-Mutant | -4/Factory Hacker-Mutant | -4/DSF Scout | -3/Research Hacker-Scout | -2/Research Hacker-Mutant | -1/Access Resources | -11 -10 -9 -9 -9 -8 -8 -8 -8 -7 -7 -7 -6 -6 -6 -6 -5 -5 -5 -5 -5 -5 -4 -4 -4 -3 -2 -1 ----------- Run | Jun Mat Mat Min Exi Min Mat Gar Mat Fac Gar Fac Fac Was Fac Gar Fac Was Fac Upp Upp War Pro Fac DSF Res Res Acc Matter Collected 11651 | 256 293 813 350 10 22 1659 498 396 1879 858 642 235 176 336 50 1041 30 880 59 263 . 353 . . 355 . 197 Remotely . | . . . . . . . . . . . . . . . . . . . . . . . . . . . . Salvage Created 17056 | . 654 1204 337 . 68 1992 735 546 2564 1565 1652 342 . 1100 819 1440 . 648 40 204 . 416 . . 397 . 333 Parts 876 | . 41 83 19 . 2 118 56 30 125 64 68 22 . 44 34 83 . 24 2 3 . 13 . . 23 . 22 Haulers Intercepted 18 | . 1 2 . . . 5 . 2 1 . 5 . . 1 . . . 1 . . . . . . . . . Recyclers Shooed 5 | . . . 1 . . . . . 1 . . . . 1 . . . 1 . . . . . . . . 1 Parts Field Recycled . | . . . . . . . . . . . . . . . . . . . . . . . . . . . . Retrieved Matter . | . . . . . . . . . . . . . . . . . . . . . . . . . . . . Parts Self-Destructed 11 | . . . . . . . . . . . . . . . . . . . . 3 . 8 . . . . . Prevented . | . . . . . . . . . . . . . . . . . . . . . . . . . . . . Kills | -11 -10 -9 -9 -9 -8 -8 -8 -8 -7 -7 -7 -6 -6 -6 -6 -5 -5 -5 -5 -5 -5 -4 -4 -4 -3 -2 -1 ------- Run | Jun Mat Mat Min Exi Min Mat Gar Mat Fac Gar Fac Fac Was Fac Gar Fac Was Fac Upp Upp War Pro Fac DSF Res Res Acc Combat Hostiles Destroyed 318 | . 15 30 15 . . 34 28 10 35 34 20 6 . 16 13 26 . 8 . 6 . 17 . . 2 . 3 Melee 10 | . . . . . . . . . . . 7 2 . . . . . . . . . 1 . . . . . Guns 187 | . 15 29 15 . . 33 17 10 30 23 7 . . . 1 2 . 2 . . . . . . 2 . 1 Cannons 73 | . . . . . . 1 11 . . 11 5 3 . 14 11 14 . 1 . . . . . . . . 2 AOE 42 | . . 1 . . . . . . 5 . . . . . . 9 . 5 . 6 . 16 . . . . . Classes Destroyed 21 | . 5 7 1 . . 2 . . 2 1 . . . . . 1 . . 1 . . 1 . . . . . Worker 18 | . . 3 3 . . 4 . . 2 . . 1 . . . 2 . 1 . . . . . . 2 . . Builder 7 | . . 1 . . . 1 . . 2 . . . . . . 2 . . . . . . . . . . 1 Tunneler 3 | . . 1 . . . 1 . . . . . . . . . . . 1 . . . . . . . . . Hauler 18 | . 1 2 . . . 5 . 2 1 . 5 . . 1 . . . 1 . . . . . . . . . Recycler 19 | . 1 . 1 . 1 1 . . 7 . 3 . . 1 . 1 . 2 . . . . . . 1 . . Carrier 1 | . . . . . . . . . . . . . . . . 1 . . . . . . . . . . . Mechanic 3 | . . . . . . . . . 1 . 2 . . . . . . . . . . . . . . . . Operator 7 | . . 1 . . . 2 . . 2 . . . . 2 . . . . . . . . . . . . . Watcher 28 | . 1 1 . . . 5 . . 8 . 1 2 . 2 . 5 . . . . . . . . 1 . 2 Swarmer 72 | . 3 4 4 . . 7 19 2 7 9 . 1 . 4 . 5 . . . 2 . 5 . . . . . Grunt 136 | . 12 17 3 . . 14 6 5 16 19 11 2 . 6 4 6 . 5 . 3 . 7 . . . . . Brawler 10 | . . 2 . . . 2 . . . 1 1 . . . 2 . . . . 1 . 1 . . . . . Duelist 6 | . . 1 . . . . . . . 1 . . . 1 1 . . . . . . 2 . . . . . Protector 1 | . . . . . . . . . . . . . . . . . . . . . . 1 . . . . . Sentry 36 | . . 6 . . . 9 3 3 5 . 4 . . . 1 . . 1 . . . 1 . . 2 . 1 Hunter 15 | . . . . . . 1 . . 2 . . . . 1 5 6 . . . . . . . . . . . Programmer 30 | . . . . . . . . . 5 3 4 3 . 2 . 9 . 2 . . . . . . . . 2 Heavy 2 | . . . . . . 1 . . . . . . . 1 . . . . . . . . . . . . . Behemoth 1 | . . . . . . . . . . 1 . . . . . . . . . . . . . . . . . Samaritan 1 | . . . . . . . . . . . . . . . . . . . 1 . . . . . . . . Assembled 8 | . . . 8 . . . . . . . . . . . . . . . . . . . . . . . . Savage 1 | . . . . . . . . . . . . . . 1 . . . . . . . . . . . . . Best Kill Streak 10 | . 4 6 6 . 1 4 10 4 10 8 3 2 . 6 5 5 . 4 . 4 . 7 . . 2 . 3 Combat Bots Only 10 | . 3 5 5 . . 4 10 4 7 8 3 1 . 5 5 5 . 4 . 4 . 7 . . 1 . 2 Max Kills in Single Turn 7 | . 1 2 2 . 1 2 2 1 7 2 1 1 . 1 1 3 . 4 1 2 . 3 . . 1 . 1 Gunslinging 1 | . . . 1 . . . 1 . . 1 . . . . . . . . . . . . . . . . . Exploded 5 | . . 1 . . . . . . 5 . . . . . . 3 . 4 . 2 . 3 . . . . . Melee 1 | . . . . . . . . . . . 1 1 . . . . . . . . . 1 . . . . . Uniques/NPCs Destroyed . | . . . . . . . . . . . . . . . . . . . . . . . . . . . . Combat | -11 -10 -9 -9 -9 -8 -8 -8 -8 -7 -7 -7 -6 -6 -6 -6 -5 -5 -5 -5 -5 -5 -4 -4 -4 -3 -2 -1 -------- Run | Jun Mat Mat Min Exi Min Mat Gar Mat Fac Gar Fac Fac Was Fac Gar Fac Was Fac Upp Upp War Pro Fac DSF Res Res Acc Damage Taken 15711 | . 880 817 235 . . 943 504 189 1186 754 1128 849 . 716 1025 1641 . 877 . . . 128 . 393 30 27 3389 Core 3601 | . 196 62 35 . . 95 83 37 243 80 101 200 . 121 53 235 . 225 . . . 56 . 177 . . 1602 Absorbed by Shields 168 | . . . . . . . . . . 25 . . . . 84 42 . . . . . . . 17 . . . Regen/Repaired (Parts) 3239 | . . . . . . 267 . 144 427 . 357 162 74 208 763 795 . 42 . . . . . . . . . Core Remaining (%) 68 | 100 21 . . . 75 . . 60 . . 39 . . . 56 . . . . . . 48 . 84 100 100 . Volleys Fired 1114 | . 64 58 27 . 1 114 77 25 133 130 89 39 11 60 45 79 11 69 . 9 . 22 . . 11 2 38 Largest 4 | . 2 3 3 . 3 4 4 4 4 4 3 3 1 4 4 4 1 2 . 1 . 1 . . 3 1 3 Hottest 320 | . 40 75 75 . 75 120 120 100 103 120 210 270 5 320 210 303 66 103 . 46 . 46 . . 105 7 120 Shots Fired 2483 | . 127 167 75 . 3 347 136 91 404 234 139 74 11 162 123 184 14 73 . 9 . 22 . . 27 2 59 Gun 1715 | . 127 167 75 . 3 345 94 91 399 166 84 12 . 34 15 12 . 34 . . . . . . 24 . 33 Cannon 642 | . . . . . . 2 42 . . 64 32 57 . 128 108 155 4 24 . . . . . . . . 26 Launcher 44 | . . . . . . . . . . . . . . . . 6 . 8 . 9 . 21 . . . . . Special 82 | . . . . . . . . . 5 4 23 5 11 . . 11 10 7 . . . 1 . . 3 2 . Kinetic 1712 | . 127 167 75 . 3 345 94 91 399 166 39 . . 7 . 80 4 35 . . . . . . 24 . 56 Thermal 630 | . . . . . . 2 42 . . 64 77 69 . 155 108 87 . 23 . . . . . . . . 3 Explosive 44 | . . . . . . . . . . . . . . . . 6 . 8 . 9 . 21 . . . . . Electromagnetic 15 | . . . . . . . . . . . . . . . 15 . . . . . . . . . . . . Robot Hit Streak 28 | . 18 8 7 . 2 10 28 20 14 10 15 10 16 17 16 12 4 17 . . . 14 . . 10 2 6 Robot Miss Streak 12 | . 3 12 8 . 1 8 3 5 5 5 3 3 . 6 3 6 2 2 . . . . . . 2 . 6 Penetration Max 2 | . . . . . . . . . . 1 . . . 1 . 1 1 . . . . . . . . . 2 Secondary Targets 21 | . 2 1 4 . . 3 3 2 2 4 . . . . . . . . . . . . . . . . . Max Gunslinging Chain 1 | . 1 1 1 . . 1 1 1 1 1 . . . . . . . . . . . . . . . . . Shots Hit Robots 1402 | . 88 97 41 . 3 190 58 64 231 96 111 36 11 98 73 95 9 55 1 4 . 7 . . 17 2 15 Core Hits 708 | . 36 62 31 . 1 92 33 22 102 57 43 12 . 46 25 52 . 25 1 10 . 38 . . 9 . 11 Critical Kills 27 | . . . . . . 1 . 2 2 1 . . . 2 1 10 . 2 . . . . . . 3 . 3 Critical Parts Destroyed 28 | . 1 3 . . . . . . 3 . . . . 4 . 13 . 3 . . . . . . . . 1 Critical Strikes 79 | . 1 3 . . . 1 . 2 5 1 3 1 . 6 1 27 2 17 . . . 1 . . 4 . 4 Burn 4 | . . . . . . . . . . . 1 1 . . . . . 2 . . . . . . . . . Meltdown 3 | . . . . . . . . . . . . . . 1 1 1 . . . . . . . . . . . Destroy 65 | . 1 3 . . . 1 . 2 5 1 . . . 5 . 22 2 15 . . . . . . 4 . 4 Blast 4 | . . . . . . . . . . . . . . . . 4 . . . . . . . . . . . Sever 3 | . . . . . . . . . . . 2 . . . . . . . . . . 1 . . . . . Melee Attacks 93 | . . . . . . . . . . . 33 17 . 7 . . . 3 1 4 . 3 . . 10 1 14 Impact . | . . . . . . . . . . . . . . . . . . . . . . . . . . . . Slashing 86 | . . . . . . . . . . . 33 17 . . . . . 3 1 4 . 3 . . 10 1 14 Piercing . | . . . . . . . . . . . . . . . . . . . . . . . . . . . . Sneak Attacks 16 | . . . . . . . . . . . 7 1 . 4 . . . . 1 . . . . . 3 . . Combat Hostiles . | . . . . . . . . . . . . . . . . . . . . . . . . . . . . Follow-up Attacks . | . . . . . . . . . . . . . . . . . . . . . . . . . . . . Damage Inflicted 39231 | . 892 2051 771 . 52 3306 1972 1129 5022 3976 3238 1081 . 2295 1830 4025 59 2271 102 1263 . 3210 . . 352 . 334 Guns 17796 | . 889 1743 771 . 52 3243 889 1129 4176 1718 1193 246 . 466 277 201 . 593 . . . . . . 88 . 122 Cannons 11621 | . . . . . . 63 1083 . . 2258 937 511 . 1828 1553 2719 59 415 . . . . . . . . 195 Explosions 7519 | . . 308 . . . . . . 838 . . . . . . 1105 . 1226 . 978 . 3064 . . . . . Melee 2229 | . . . . . . . . . . . 1108 324 . . . . . . 102 285 . 146 . . 264 . . Ramming 66 | . 3 . . . . . . . 8 . . . . 1 . . . 37 . . . . . . . . 17 Kinetic 17634 | . 889 1743 771 . 52 3243 889 1129 4176 1718 460 . . 153 . 1355 59 592 . . . . . . 88 . 317 Thermal 13344 | . . 308 . . . 63 1083 . 838 2258 1670 757 . 2141 1553 1565 . 1108 . . . . . . . . . Explosive 5681 | . . . . . . . . . . . . . . . . 1105 . 534 . 978 . 3064 . . . . . Electromagnetic 277 | . . . . . . . . . . . . . . . 277 . . . . . . . . . . . . Impact . | . . . . . . . . . . . . . . . . . . . . . . . . . . . . Slashing 2229 | . . . . . . . . . . . 1108 324 . . . . . . 102 285 . 146 . . 264 . . Piercing . | . . . . . . . . . . . . . . . . . . . . . . . . . . . . Highest Corruption 30 | . . . . . . 1 1 1 1 5 5 7 . 1 . 3 30 30 . . . . . 1 . . 8 Average Corruption 5 | . . . . . . 1 1 1 1 5 2 6 . 1 . 1 18 18 . . . . . 1 . . 4 Corruption Purged 57 | . . . . . . . . . 1 . 6 7 . 1 . 7 . 35 . . . . . . . . . Corruption Blocked . | . . . . . . . . . . . . . . . . . . . . . . . . . . . . Effects 220 | . . . . . . 8 5 11 5 27 35 15 . . . 12 16 80 . . . . . . . . 6 Message Errors 54 | . . . . . . . 2 2 1 8 14 2 . . . 4 4 15 . . . . . . . . 2 Matter Fused 62 | . . . . . . 5 1 5 1 5 5 4 . . . 1 5 29 . . . . . . . . 1 Heat Flow Errors 27 | . . . . . . 1 . . . 3 5 4 . . . 3 1 10 . . . . . . . . . Energy Discharges 20 | . . . . . . . 1 . . 3 4 3 . . . 2 1 5 . . . . . . . . 1 Parts Rejected 3 | . . . . . . . . . . 1 . . . . . . 1 1 . . . . . . . . . Parts Fused 2 | . . . . . . . . . . . 1 . . . . . . 1 . . . . . . . . . Data Loss (minor) 22 | . . . . . . 1 . 1 2 5 1 . . . . 2 . 9 . . . . . . . . 1 Data Loss (major) 10 | . . . . . . 1 1 . 1 2 1 . . . . . . 4 . . . . . . . . . Misfires 10 | . . . . . . . . 1 . . 4 1 . . . . 3 1 . . . . . . . . . Alerts 3 | . . . . . . . . . . . . 1 . . . . 1 1 . . . . . . . . . Misdirections 2 | . . . . . . . . . . . . . . . . . . 2 . . . . . . . . . Weapon Failures 5 | . . . . . . . . 2 . . . . . . . . . 2 . . . . . . . . 1 Overload Shots 79 | . . . . . . . . . . . 9 17 . 23 11 19 . . . . . . . . . . . Effects 6 | . . . . . . . . . . . . 2 . 3 . 1 . . . . . . . . . . . Energy Bleed 2 | . . . . . . . . . . . . 1 . 1 . . . . . . . . . . . . . Heat Surge 2 | . . . . . . . . . . . . 1 . 1 . . . . . . . . . . . . . Short Circuit 2 | . . . . . . . . . . . . . . 1 . 1 . . . . . . . . . . . Overflow Damage 1239 | . . 23 . . . . 35 . 315 25 234 78 . 51 . 181 . 31 . 159 . 43 . . 64 . . Projectiles 403 | . . . . . . . 35 . . 25 86 63 . 51 . 143 . . . . . . . . . . . Explosions 492 | . . 23 . . . . . . 315 . . . . . . 38 . 31 . 42 . 43 . . . . . Melee 344 | . . . . . . . . . . . 148 15 . . . . . . . 117 . . . . 64 . . Knockbacks 20 | . . . . . . . . . . . . . . 3 . 14 . . . . . . . . . . 3 Impact . | . . . . . . . . . . . . . . . . . . . . . . . . . . . . Kinetic 19 | . . . . . . . . . . . . . . 3 . 14 . . . . . . . . . . 2 Secondary 1 | . . . . . . . . . . . . . . . . . . . . . . . . . . . 1 Self-Inflicted Damage 218 | . . 53 . . . 84 . . 73 . . . . . . . . . . . . . . . . . 8 Shots 3 | . . 1 . . . 1 . . 1 . . . . . . . . . . . . . . . . . . Rammed 3 | . 1 . . . . . . . . . . . . . . . . . . . . . . . . . 2 Targets Rammed 14 | . 2 . . . . . . . 2 . . . . 1 . . . 7 . . . . . . . . 2 Kicked 10 | . . . . . . . . . 2 . . . . 1 . . . 7 . . . . . . . . . Crushed 1 | . 1 . . . . . . . . . . . . . . . . . . . . . . . . . . Highest Temperature 506 | . 34 159 148 . 38 301 352 299 365 266 255 506 . 395 270 489 156 266 . . . . . . 24 . 72 Average Temperature 78 | . 14 47 42 . 20 70 121 94 67 31 65 116 . 100 95 118 48 70 . . . . . . 12 . 25 Received Heat Transfer 2994 | . 450 342 72 . . 342 117 81 267 204 477 48 . 72 162 144 . 54 . . . 9 . . . 9 144 Effects 18 | . . . . . . . 5 3 1 . . 2 . 4 . 3 . . . . . . . . . . . Shutdowns 3 | . . . . . . . . . . . . 2 . 1 . . . . . . . . . . . . . Energy Bleed 4 | . . . . . . . 2 . 1 . . . . 1 . . . . . . . . . . . . . Interference 8 | . . . . . . . 3 3 . . . . . 2 . . . . . . . . . . . . . Matter Decay 2 | . . . . . . . . . . . . . . . . 2 . . . . . . . . . . . Damage (minor) 1 | . . . . . . . . . . . . . . . . 1 . . . . . . . . . . . Siege Activations . | . . . . . . . . . . . . . . . . . . . . . . . . . . . . Robots Corrupted . | . . . . . . . . . . . . . . . . . . . . . . . . . . . . Combat Hostiles . | . . . . . . . . . . . . . . . . . . . . . . . . . . . . Parts Fried . | . . . . . . . . . . . . . . . . . . . . . . . . . . . . Impact Corruptions . | . . . . . . . . . . . . . . . . . . . . . . . . . . . . Robots Melted 7 | . . . . . . . . . . . 1 1 . 3 1 1 . . . . . . . . . . . Combat Hostiles 6 | . . . . . . . . . . . 1 1 . 2 1 1 . . . . . . . . . . . Parts Melted 32 | . . . . . . . 3 . . 1 6 2 . 4 12 2 . 2 . . . . . . . . . Heat Transferred 21011 | . . 150 . . . 160 2480 . 500 4800 3033 1093 . 3332 2220 1793 . 1450 . . . . . . . . . Parts Sabotaged . | . . . . . . . . . . . . . . . . . . . . . . . . . . . . Parts Stolen . | . . . . . . . . . . . . . . . . . . . . . . . . . . . . Parts Stripped . | . . . . . . . . . . . . . . . . . . . . . . . . . . . . Power Chain Reactions . | . . . . . . . . . . . . . . . . . . . . . . . . . . . . Missiles Intercepted . | . . . . . . . . . . . . . . . . . . . . . . . . . . . . Alert | -11 -10 -9 -9 -9 -8 -8 -8 -8 -7 -7 -7 -6 -6 -6 -6 -5 -5 -5 -5 -5 -5 -4 -4 -4 -3 -2 -1 ------- Run | Jun Mat Mat Min Exi Min Mat Gar Mat Fac Gar Fac Fac Was Fac Gar Fac Was Fac Upp Upp War Pro Fac DSF Res Res Acc Peak Influence 1412 | . 184 557 339 . 5 445 1081 704 787 1412 819 255 39 906 679 642 98 347 . . . . 223 196 179 116 367 Initial 741 | . . 13 214 . . 1 289 526 289 541 741 172 . 2 164 356 98 58 . . . . 223 156 87 39 69 Average 318 | . 102 305 267 . 1 223 766 625 420 994 315 79 5 358 426 254 88 119 . . . . 223 177 109 67 171 Maximum Alert Level 4 | . . 2 1 . . 2 3 3 3 4 3 1 . 3 2 2 . 1 . . . . 1 . . . 1 Low Security (%) 40 | 100 100 32 12 . 100 38 . . 8 . 43 94 100 18 6 38 100 83 . . . . . 100 100 100 74 Level 1 29 | . . 30 87 . . 52 18 . 49 . 23 5 . 46 38 38 . 16 . . . . 100 . . . 25 Level 2 20 | . . 36 . . . 9 19 90 35 18 17 . . 28 55 22 . . . . . . . . . . . Level 3 7 | . . . . . . . 61 9 6 46 15 . . 5 . . . . . . . . . . . . . Level 4 1 | . . . . . . . . . . 34 . . . . . . . . . . . . . . . . . Level 5 . | . . . . . . . . . . . . . . . . . . . . . . . . . . . . High Security . | . . . . . . . . . . . . . . . . . . . . . . . . . . . . Max Security . | . . . . . . . . . . . . . . . . . . . . . . . . . . . . Squads Dispatched 77 | . 3 4 . . . 4 . 2 10 . 8 7 . 15 . 9 . 6 . . . 1 . 2 2 . 4 Investigation 23 | . 2 2 . . . 2 . 1 1 . 3 . . 4 . 2 . 3 . . . . . . 1 . 2 Extermination 27 | . . . . . . . . . 4 . 4 4 . 5 . 5 . 3 . . . . . . 1 . 1 Reinforcement 20 | . 1 2 . . . 2 . . 2 . 1 3 . 4 . 2 . . . . . . . 2 . . 1 Assault 5 | . . . . . . . . 1 1 . . . . 2 . . . . . . . 1 . . . . . Garrison 2 | . . . . . . . . . 2 . . . . . . . . . . . . . . . . . . Intercept . | . . . . . . . . . . . . . . . . . . . . . . . . . . . . Searches Triggered . | . . . . . . . . . . . . . . . . . . . . . . . . . . . . Construction Impeded 4 | . . 1 . . . . . . . . . . . 1 . 1 . . . . . . . . . . 1 Haulers Reinforced 2 | . . . . . . . . . 1 . 1 . . . . . . . . . . . . . . . . Active Scanning Responses . | . . . . . . . . . . . . . . . . . . . . . . . . . . . . Cargo Convoy Interrupts . | . . . . . . . . . . . . . . . . . . . . . . . . . . . . Stealth | -11 -10 -9 -9 -9 -8 -8 -8 -8 -7 -7 -7 -6 -6 -6 -6 -5 -5 -5 -5 -5 -5 -4 -4 -4 -3 -2 -1 --------- Run | Jun Mat Mat Min Exi Min Mat Gar Mat Fac Gar Fac Fac Was Fac Gar Fac Was Fac Upp Upp War Pro Fac DSF Res Res Acc Distress Signals 22 | . 3 4 1 . . 3 . . 1 . 1 3 . . . . . . . . . . . . 1 . 5 Communications Jammed . | . . . . . . . . . . . . . . . . . . . . . . . . . . . . Distress Signals . | . . . . . . . . . . . . . . . . . . . . . . . . . . . . Times Spotted 446 | . 21 36 19 . . 47 21 12 48 28 27 18 6 39 15 30 3 9 . 2 . 14 . 7 3 2 39 Peak Tracking Total 16 | . 5 5 5 . . 4 4 4 7 7 4 5 4 5 3 3 1 2 . 3 . 6 . 5 2 1 16 Tactical Retreats 28 | . . 1 2 . . 3 2 1 1 . 2 . . 1 . 1 . 1 . 1 . . . 2 1 . 9 Traps | -11 -10 -9 -9 -9 -8 -8 -8 -8 -7 -7 -7 -6 -6 -6 -6 -5 -5 -5 -5 -5 -5 -4 -4 -4 -3 -2 -1 ------- Run | Jun Mat Mat Min Exi Min Mat Gar Mat Fac Gar Fac Fac Was Fac Gar Fac Was Fac Upp Upp War Pro Fac DSF Res Res Acc Traps Triggered 45 | . 1 . . . . 3 3 . 2 4 6 3 . 4 8 4 . 4 . . . . . 1 2 . . Indirectly . | . . . . . . . . . . . . . . . . . . . . . . . . . . . . Trap Hack Attempts 35 | . . . . . . . . . . . . . . 10 . 25 . . . . . . . . . . . Triggered 1 | . . . . . . . . . . . . . . 1 . . . . . . . . . . . . . Disarmed . | . . . . . . . . . . . . . . . . . . . . . . . . . . . . Reprogrammed 9 | . . . . . . . . . . . . . . 3 . 6 . . . . . . . . . . . Reused . | . . . . . . . . . . . . . . . . . . . . . . . . . . . . Traps Extracted . | . . . . . . . . . . . . . . . . . . . . . . . . . . . . Installed . | . . . . . . . . . . . . . . . . . . . . . . . . . . . . Triggered . | . . . . . . . . . . . . . . . . . . . . . . . . . . . . Machines | -11 -10 -9 -9 -9 -8 -8 -8 -8 -7 -7 -7 -6 -6 -6 -6 -5 -5 -5 -5 -5 -5 -4 -4 -4 -3 -2 -1 ---------- Run | Jun Mat Mat Min Exi Min Mat Gar Mat Fac Gar Fac Fac Was Fac Gar Fac Was Fac Upp Upp War Pro Fac DSF Res Res Acc Machines Disabled 50 | . . 4 . . . 4 6 1 5 3 1 2 . 6 2 8 . 7 . . . 1 . . . . . Max in Single Turn 5 | . . 4 . . . 2 1 1 3 1 1 . . 1 1 2 . 5 . . . 1 . . . . . Garrison Access 7 | . . . . . . . . . 2 . 3 1 . 1 . . . . . . . . . . . . . Garrison Relay 6 | . . . . . . . 2 . . 2 . . . . 2 . . . . . . . . . . . . Machines Repaired . | . . . . . . . . . . . . . . . . . . . . . . . . . . . . Machines Sabotaged . | . . . . . . . . . . . . . . . . . . . . . . . . . . . . Overloaded Fab Kills . | . . . . . . . . . . . . . . . . . . . . . . . . . . . . Hacking | -11 -10 -9 -9 -9 -8 -8 -8 -8 -7 -7 -7 -6 -6 -6 -6 -5 -5 -5 -5 -5 -5 -4 -4 -4 -3 -2 -1 --------- Run | Jun Mat Mat Min Exi Min Mat Gar Mat Fac Gar Fac Fac Was Fac Gar Fac Was Fac Upp Upp War Pro Fac DSF Res Res Acc Machines Accessed 128 | . 4 6 . 1 . 15 2 2 17 1 22 11 . 17 . 10 . 9 . 1 . . 1 . 2 4 3 Terminals 72 | . 3 5 . . . 10 2 1 7 1 11 3 . 13 . 5 . 4 . . . . 1 . 1 3 2 Fabricators 10 | . . . . . . . . . . . 2 1 . . . 2 . 3 . . . . . . 1 . 1 Repair Stations 11 | . 1 . . . . 2 . 1 1 . 2 2 . . . . . 1 . . . . . . . 1 . Recycling Units 13 | . . . . . . . . . 4 . 4 1 . 1 . 2 . 1 . . . . . . . . . Scanalyzers 9 | . . 1 . . . 2 . . 2 . . 3 . 1 . . . . . . . . . . . . . Garrison Access 11 | . . . . . . 1 . . 3 . 3 1 . 2 . 1 . . . . . . . . . . . Total Hacks 386 | . 14 23 . 1 . 59 5 9 67 1 59 27 . 41 . 32 . 25 . 1 . . 1 . 6 7 8 Successful 237 | . 3 12 . 1 . 44 . 5 45 1 36 20 . 20 . 23 . 14 . 1 . . 1 . 5 4 2 Failed 146 | . 10 11 . . . 15 5 4 21 . 23 7 . 21 . 8 . 11 . . . . . . 1 3 6 Catastrophic 24 | . 1 4 . . . 4 1 1 2 . 1 2 . 6 . . . 1 . . . . . . . . 1 Database Lockouts 3 | . 1 . . . . . . . 1 . . . . . . 1 . . . . . . . . . . . Manual 195 | . 9 9 . 1 . 27 . 3 29 . 39 9 . 26 . 21 . 17 . . . . . . . 2 3 Terminals 197 | . 12 11 . . . 27 5 4 21 1 32 8 . 33 . 16 . 14 . . . . 1 . 1 5 6 Fabricators 25 | . . . . . . . . . . . 4 1 . . . 7 . 6 . . . . . . 5 . 2 Repair Stations 33 | . 2 . . . . 8 . 5 4 . 6 4 . . . . . 2 . . . . . . . 2 . Recycling Units 39 | . . . . . . . . . 14 . 11 3 . 1 . 7 . 3 . . . . . . . . . Scanalyzers 68 | . . 12 . . . 23 . . 21 . . 9 . 3 . . . . . . . . . . . . . Garrison Access 22 | . . . . . . 1 . . 7 . 6 2 . 4 . 2 . . . . . . . . . . . Terminal Hacks 70 | . 2 2 . 1 . 11 . 1 7 1 9 2 . 14 . 8 . 6 . 1 . . 1 . 1 3 . Part Schematic 6 | . . . . . . 1 . . 2 . . . . 1 . . . 2 . . . . . . . . . Robot Schematic 13 | . 1 . . . . 2 . . 2 . 3 . . 3 . 1 . 1 . . . . . . . . . Robot Analysis 1 | . . . . . . . . . . . 1 . . . . . . . . . . . . . . . . Open Door 1 | . . . . . . . . . . . . . . . . . . . . 1 . . . . . . . Open DSF 3 | . . . . . . . . . . . . . . . . . . . . . . . 1 . 1 1 . Level Access Points 1 | . . . . . . . . . . . . . . . . . . . . . . . . . . 1 . Branch Access Points 1 | . . . . . . . . . . . . 1 . . . . . . . . . . . . . . . Emergency Access Points 1 | . . . . . . . . . . 1 . . . . . . . . . . . . . . . . . Machine Index 1 | . . . . . . . . . . . 1 . . . . . . . . . . . . . . . . Terminal Index 6 | . . . . . . 1 . . 1 . . 1 . 1 . 1 . 1 . . . . . . . . . Fabricator Index 3 | . . . . . . . . . . . 1 . . . . 1 . 1 . . . . . . . . . Scanalyzer Index 1 | . . . . . . . . . . . 1 . . . . . . . . . . . . . . . . Garrison Index 2 | . . . . . . . . . 1 . . . . 1 . . . . . . . . . . . . . Alert Level 2 | . . 1 . . . 1 . . . . . . . . . . . . . . . . . . . . . Unreport Threat 15 | . 1 1 . . . 3 . . 1 . . . . 5 . 3 . 1 . . . . . . . . . Recall Extermination 2 | . . . . . . . . . . . . . . . . 2 . . . . . . . . . . . Recall Assault 2 | . . . . . . . . . . . . . . 2 . . . . . . . . . . . . . Hauler Manifests 1 | . . . . . . 1 . . . . . . . . . . . . . . . . . . . . . Zone Layout 7 | . . . . . . 2 . 1 . . 2 . . 1 . . . . . . . . . . . 1 . EX-Prototype ID Bank 1 | . . . . 1 . . . . . . . . . . . . . . . . . . . . . . . Fabricator Hacks 18 | . . . . . . . . . . . 3 1 . . . 4 . 4 . . . . . . 4 . 2 Load Schematic 9 | . . . . . . . . . . . 2 . . . . 2 . 2 . . . . . . 2 . 1 Build 9 | . . . . . . . . . . . 1 1 . . . 2 . 2 . . . . . . 2 . 1 Repair Station Hacks 20 | . 1 . . . . 6 . 3 2 . 4 2 . . . . . 1 . . . . . . . 1 . Scan Component 10 | . 1 . . . . 3 . 2 1 . 2 1 . . . . . . . . . . . . . . . Repair 8 | . . . . . . 3 . 1 1 . 2 1 . . . . . . . . . . . . . . . Refit 2 | . . . . . . . . . . . . . . . . . . 1 . . . . . . . 1 . Recycling Unit Hacks 4 | . . . . . . . . . 3 . . . . . . 1 . . . . . . . . . . . Report Inventory 1 | . . . . . . . . . 1 . . . . . . . . . . . . . . . . . . Retrieve Matter 1 | . . . . . . . . . 1 . . . . . . . . . . . . . . . . . . Retrieve Components 2 | . . . . . . . . . 1 . . . . . . 1 . . . . . . . . . . . Scanalyzer 58 | . . 9 . . . 21 . . 19 . . 9 . . . . . . . . . . . . . . . Insert Component 26 | . . 5 . . . 10 . . 8 . . 3 . . . . . . . . . . . . . . . Analyze 32 | . . 4 . . . 11 . . 11 . . 6 . . . . . . . . . . . . . . . Garrison Access Hacks 17 | . . . . . . 1 . . 5 . 6 2 . 3 . . . . . . . . . . . . . Unlock Access 3 | . . . . . . 1 . . 1 . . . . 1 . . . . . . . . . . . . . Seal Access 7 | . . . . . . . . . 2 . 3 1 . 1 . . . . . . . . . . . . . Coupler Status 7 | . . . . . . . . . 2 . 3 1 . 1 . . . . . . . . . . . . . Unauthorized Hacks 50 | . . 1 . . . 5 . 1 9 . 14 4 . 3 . 10 . 3 . . . . . . . . . Terminals 26 | . . . . . . 4 . 1 3 . 8 2 . 3 . 4 . 1 . . . . . . . . . Track 1 | . . . . . . . . . . . 1 . . . . . . . . . . . . . . . . Assimilate 2 | . . . . . . . . . . . 2 . . . . . . . . . . . . . . . . Botnet 19 | . . . . . . 3 . 1 3 . 3 2 . 3 . 3 . 1 . . . . . . . . . Disrupt 2 | . . . . . . 1 . . . . 1 . . . . . . . . . . . . . . . . Operators 2 | . . . . . . . . . . . 1 . . . . 1 . . . . . . . . . . . Fabricators . | . . . . . . . . . . . . . . . . . . . . . . . . . . . . Repair Stations 1 | . . . . . . . . . 1 . . . . . . . . . . . . . . . . . . Mechanics 1 | . . . . . . . . . 1 . . . . . . . . . . . . . . . . . . Recycling Units 19 | . . . . . . . . . 5 . 6 2 . . . 4 . 2 . . . . . . . . . Monitor 4 | . . . . . . . . . 2 . 1 . . . . 1 . . . . . . . . . . . Reject 5 | . . . . . . . . . 1 . 1 1 . . . 1 . 1 . . . . . . . . . Recyclers 3 | . . . . . . . . . 1 . 1 . . . . 1 . . . . . . . . . . . Mask 7 | . . . . . . . . . 1 . 3 1 . . . 1 . 1 . . . . . . . . . Scanalyzers 2 | . . 1 . . . 1 . . . . . . . . . . . . . . . . . . . . . Extract 2 | . . 1 . . . 1 . . . . . . . . . . . . . . . . . . . . . Garrison Access 2 | . . . . . . . . . . . . . . . . 2 . . . . . . . . . . . Reprogram 1 | . . . . . . . . . . . . . . . . 1 . . . . . . . . . . . Intercept 1 | . . . . . . . . . . . . . . . . 1 . . . . . . . . . . . Data Cores Recovered 3 | . . . . . . 2 . . . . . . . 1 . . . . . . . . . . . . . Used 2 | . . . . . . 1 . . . . . . . 1 . . . . . . . . . . . . . Hacking Detections 104 | . 4 6 . . . 13 2 2 14 . 16 9 . 16 . 7 . 9 . . . . . . 1 3 2 Full Trace Events 19 | . 2 1 . . . 2 . 1 . . 2 . . 3 . 2 . 3 . . . . . . 1 . 2 Feedback Events 3 | . . . . . . . . . . . . . . . . . . 1 . . . . . . . . 2 Corruption 1 | . . . . . . . . . . . . . . . . . . . . . . . . . . . 1 Hackware Fried 2 | . . . . . . . . . . . . . . . . . . 1 . . . . . . . . 1 Feedback Blocked . | . . . . . . . . . . . . . . . . . . . . . . . . . . . . Robot Schematics Acquired 13 | . 1 . . . . 2 . . 2 . 3 . . 3 . 1 . 1 . . . . . . . . . Robots Built 6 | . . . . . . . . . . . . . . . . 3 . 1 . . . . . . . . 2 Authchips 1 | . . . . . . . . . . . . . . . . . . . . . . . . . . . 1 Time 231 | . . . . . . . . . . . . . . . . 123 . 58 . . . . . . . . 50 Total Robot Build Rating 27 | . . . . . . . . . . . . . . . . 14 . 3 . . . . . . . . 10 Part Schematics Acquired 42 | . . 15 . . . 11 . . 10 . . 3 . 1 . . . 2 . . . . . . . . . Parts Built 9 | . . . . . . . . . . . 2 2 . . . . . 2 . . . . . . 3 . . Authchips 1 | . . . . . . . . . . . . . . . . . . . . . . . . . 1 . . Time 321 | . . . . . . . . . . . 117 128 . . . . . 35 . . . . . . 41 . . Total Part Build Rating 47 | . . . . . . . . . . . 14 16 . . . . . 12 . . . . . . 5 . . Parts Repaired 8 | . . . . . . 3 . 1 1 . 2 1 . . . . . . . . . . . . . . . Time 358 | . . . . . . 136 . 76 30 . 66 50 . . . . . . . . . . . . . . . Parts Recycled . | . . . . . . . . . . . . . . . . . . . . . . . . . . . . Recycled Matter . | . . . . . . . . . . . . . . . . . . . . . . . . . . . . Retrieved Matter . | . . . . . . . . . . . . . . . . . . . . . . . . . . . . Retrieved Components 19 | . . . . . . . . . 9 . . . . . . 10 . . . . . . . . . . . Parts Scanalyzed 24 | . . 5 . . . 8 . . 8 . . 3 . . . . . . . . . . . . . . . Part Schematics Acquired 23 | . . 4 . . . 8 . . 8 . . 3 . . . . . . . . . . . . . . . Parts Damaged . | . . . . . . . . . . . . . . . . . . . . . . . . . . . . Bothacking | -11 -10 -9 -9 -9 -8 -8 -8 -8 -7 -7 -7 -6 -6 -6 -6 -5 -5 -5 -5 -5 -5 -4 -4 -4 -3 -2 -1 ------------ Run | Jun Mat Mat Min Exi Min Mat Gar Mat Fac Gar Fac Fac Was Fac Gar Fac Was Fac Upp Upp War Pro Fac DSF Res Res Acc Used RIF Installer 3 | . . . . . . . 1 . . 1 . . . . 1 . . . . . . . . . . . . Coupler Efficiency 1 | . . . . . . . . . . . . . . . 1 . . . . . . . . . . . . Patrol Navigation 1 | . . . . . . . . . . 1 . . . . . . . . . . . . . . . . . Robots Hacked 45 | . . . . . . . . . 3 3 7 4 6 4 . 8 6 3 . . . . . . . 1 . Non-combat 24 | . . . . . . . . . 3 . 5 3 . 4 . 5 . 3 . . . . . . . 1 . Combat 21 | . . . . . . . . . . 3 2 1 6 . . 3 6 . . . . . . . . . . Robot Hacks Applied 60 | . . . . . . . . . 3 3 13 4 10 5 . 8 9 4 . . . . . . . 1 . parse_system 2 | . . . . . . . . . . . 1 . . . . . . 1 . . . . . . . . . no_distress 1 | . . . . . . . . . . . . . . 1 . . . . . . . . . . . . . find_chute 2 | . . . . . . . . . . . . 1 . . . 1 . . . . . . . . . . . find_fabricator 1 | . . . . . . . . . . . 1 . . . . . . . . . . . . . . . . drop_inventory 2 | . . . . . . . . . . . . . . . . . . 2 . . . . . . . . . recall_reinforcements 1 | . . . . . . . . . . . 1 . . . . . . . . . . . . . . . . find_recycling 4 | . . . . . . . . . . . 1 . . 1 . 2 . . . . . . . . . . . purge_threat 4 | . . . . . . . . . . . 4 . . . . . . . . . . . . . . . . block_reporting 1 | . . . . . . . . . . . 1 . . . . . . . . . . . . . . . . mark_security 1 | . . . . . . . . . . . . . . 1 . . . . . . . . . . . . . ignore_targets 18 | . . . . . . . . . . . . . 9 . . . 9 . . . . . . . . . . overload_power 1 | . . . . . . . . . . . . . 1 . . . . . . . . . . . . . . overwrite_iff 3 | . . . . . . . . . . 1 . . . . . 2 . . . . . . . . . . . streamctrl_high 1 | . . . . . . . . . . . 1 . . . . . . . . . . . . . . . . formatsys_low 12 | . . . . . . . . . 3 . 2 2 . 2 . 2 . 1 . . . . . . . . . formatsys_high 6 | . . . . . . . . . . 2 1 1 . . . 1 . . . . . . . . . 1 . Relay Couplers Released 34 | . . . . . . . 7 . . 7 2 2 . 2 10 4 . . . . . . . . . . . Machine Destruction 30 | . . . . . . . 7 . . 7 2 2 . 2 10 . . . . . . . . . . . . Programmers 4 | . . . . . . . . . . . . . . . . 4 . . . . . . . . . . . Attached 17 | . . . . . . . . . 1 2 3 2 1 1 . 3 . 4 . . . . . . . . . Fabnet Peak Effective % . | . . . . . . . . . . . . . . . . . . . . . . . . . . . . Robots Rewired 1 | . . . . . . . . . . . . . . . . . . . . . . 1 . . . . . Allies Hacked 3 | . . . . . . . . . . . . . . . . 1 2 . . . . . . . . . . Hacks Repelled . | . . . . . . . . . . . . . . . . . . . . . . . . . . . . Allies | -11 -10 -9 -9 -9 -8 -8 -8 -8 -7 -7 -7 -6 -6 -6 -6 -5 -5 -5 -5 -5 -5 -4 -4 -4 -3 -2 -1 -------- Run | Jun Mat Mat Min Exi Min Mat Gar Mat Fac Gar Fac Fac Was Fac Gar Fac Was Fac Upp Upp War Pro Fac DSF Res Res Acc Total Allies 51 | . . . 1 . . . . . 3 3 6 3 18 2 . 8 2 1 . . . 1 . . . 1 2 Largest Group 19 | . . . 1 1 . . . . 3 3 4 4 19 16 2 6 8 5 . . . 1 1 1 . 1 3 Highest-Rated Group 664 | . . . 31 31 . . . . 46 46 83 104 664 588 52 214 496 279 . . . 49 49 49 . 45 127 Highest-Rated Ally 141 | . . . 31 31 . . . . 26 26 26 41 50 50 27 65 141 141 . . . 49 49 49 . 45 45 Total Orders 174 | . . . . . . . . . 27 8 13 15 2 4 23 44 11 20 . . . . 3 1 . . 3 STAY 82 | . . . . . . . . . 10 3 8 9 . 1 9 20 7 10 . . . . 2 1 . . 2 FOLLOW 40 | . . . . . . . . . 6 2 2 2 1 . 4 10 4 7 . . . . 1 . . . 1 AID 39 | . . . . . . . . . 7 1 3 3 1 1 7 13 . 3 . . . . . . . . . DROP 7 | . . . . . . . . . 2 1 . 1 . 2 . 1 . . . . . . . . . . . PICKUP 5 | . . . . . . . . . 2 . . . . . 3 . . . . . . . . . . . . COLLECT 1 | . . . . . . . . . . 1 . . . . . . . . . . . . . . . . . Ally Attacks 355 | . . . . . . . . . . 8 . 6 115 160 . 6 41 8 . . . . . 4 . . 7 Total Damage 11495 | . . . . . . . . . . 94 . 437 4329 4001 . 92 1790 458 . . . . . 122 . . 172 Kills 53 | . . . . . . . . . . 2 . 4 9 28 . 1 3 4 . . . . . 1 . . 1 Allies Corrupted 5 | . . . . . . . . . . . . . . 2 . 1 . 2 . . . . . . . . . Allies Melted 2 | . . . . . . . . . . . . . . 1 . 1 . . . . . . . . . . . Intel | -11 -10 -9 -9 -9 -8 -8 -8 -8 -7 -7 -7 -6 -6 -6 -6 -5 -5 -5 -5 -5 -5 -4 -4 -4 -3 -2 -1 ------- Run | Jun Mat Mat Min Exi Min Mat Gar Mat Fac Gar Fac Fac Was Fac Gar Fac Was Fac Upp Upp War Pro Fac DSF Res Res Acc Robot Analysis Total 1 | . . . . . . . . . . . 1 . . . . . . . . . . . . . . . . Derelict Logs Recovered 4 | . . . 2 . . . . . . . . . . . . . . . . 1 . 1 . . . . . Drone Launches . | . . . . . . . . . . . . . . . . . . . . . . . . . . . . Drone Recoveries . | . . . . . . . . . . . . . . . . . . . . . . . . . . . . Exploration | -11 -10 -9 -9 -9 -8 -8 -8 -8 -7 -7 -7 -6 -6 -6 -6 -5 -5 -5 -5 -5 -5 -4 -4 -4 -3 -2 -1 ------------- Run | Jun Mat Mat Min Exi Min Mat Gar Mat Fac Gar Fac Fac Was Fac Gar Fac Was Fac Upp Upp War Pro Fac DSF Res Res Acc Turns Passed 31584 | 71 633 996 627 342 39 2571 945 777 4000 1350 3951 2485 663 3044 1294 3483 384 2108 68 214 17 240 49 78 510 110 535 Spaces Moved 21269 | 44 262 521 424 282 29 1332 463 374 2677 738 2637 1484 323 2002 795 2182 237 1347 175 473 45 451 114 100 582 283 893 Core 92 | 9 . . . . . . . . . . . . . . . . . 62 . . . . . . . . 21 Treads 240 | 35 205 . . . . . . . . . . . . . . . . . . . . . . . . . . Legs 17302 | . 57 521 424 282 29 1332 463 374 2677 738 2637 1484 323 2002 795 2182 237 740 . . . . . . . . 5 Wheels . | . . . . . . . . . . . . . . . . . . . . . . . . . . . . Hover 116 | . . . . . . . . . . . . . . . . . . . . . . . . . . . 116 Flight 3519 | . . . . . . . . . . . . . . . . . . 545 175 473 45 451 114 100 582 283 751 Fastest Speed 32 | 50 120 120 120 120 120 120 123 120 120 120 120 120 120 120 120 120 120 37 37 37 37 37 37 34 32 32 32 Average Speed 110 | 137 160 123 120 120 120 141 146 122 120 123 124 128 127 127 120 120 120 93 37 37 37 37 37 36 32 32 40 Slowest Speed 300 | 160 260 190 120 120 120 193 193 190 120 190 193 193 190 190 190 120 120 300 37 37 37 37 37 119 107 32 110 Overloaded Moves . | . . . . . . . . . . . . . . . . . . . . . . . . . . . . Propulsion Burnouts . | . . . . . . . . . . . . . . . . . . . . . . . . . . . . Robots Hopped 20 | . . . . . . . . . . . . . . . . . . 4 . 1 . . . 2 7 1 5 Cave-ins Triggered 2 | . . . . . . . . . . . . 1 . . . . . . . . . . . . . . 1 Exploration Rate (%) 46 | 5 58 46 83 69 11 95 47 32 40 47 57 29 93 56 43 30 93 22 39 75 9 65 2 91 17 10 29 Regions Visited 27 Branch Regions 7 Pre-discovered Areas 1 | . . . 1 . . . . . . . . . . . . . . . . . . . . . . . . Known Exits Taken 8 | . . . . . 1 1 . . 1 . 1 . . 1 . . . . . . . . 1 . 1 1 . Unknown Exits Taken 11 | 1 1 1 1 1 . . . 1 . . . . . . . . . 1 1 1 1 1 . . . . . Scrap Searched 8 | . . . 1 . . . . . . . . . . . . . . . 2 2 . 3 . . . . . Spaces Dug 94 | . . . . . . . . . . . 11 24 . 11 5 3 . 3 . . . . . . 7 1 29 Terrain Destroyed 920 | . . 38 . . . 30 2 . 61 1 16 29 . 17 12 91 . 189 . 154 . 241 . . 7 1 31 Melee 43 | . . . . . . . . . . . 11 7 . . . . . 3 . . . . . . 7 1 14 Projectile 99 | . . . . . . . 2 . . 1 5 22 . 17 12 23 . . . . . . . . . . 17 AOE 778 | . . 38 . . . 30 . . 61 . . . . . . 68 . 186 . 154 . 241 . . . . . Terrain Rammed . | . . . . . . . . . . . . . . . . . . . . . . . . . . . . Walls Destroyed . | . . . . . . . . . . . . . . . . . . . . . . . . . . . . Machines Disabled . | . . . . . . . . . . . . . . . . . . . . . . . . . . . . Actions | -11 -10 -9 -9 -9 -8 -8 -8 -8 -7 -7 -7 -6 -6 -6 -6 -5 -5 -5 -5 -5 -5 -4 -4 -4 -3 -2 -1 --------- Run | Jun Mat Mat Min Exi Min Mat Gar Mat Fac Gar Fac Fac Was Fac Gar Fac Was Fac Upp Upp War Pro Fac DSF Res Res Acc Total 27519 | 52 358 756 492 286 31 1856 650 667 3326 1035 3138 1957 572 2360 1047 2907 332 2109 175 491 44 493 120 137 851 299 978 Wait 4334 | . 15 123 33 . 2 358 79 248 473 123 322 376 226 227 180 566 84 617 . 2 . 17 7 27 200 10 19 Move 21202 | 43 261 520 423 281 28 1331 461 373 2676 736 2636 1484 322 2001 793 2182 236 1338 174 470 44 450 113 95 568 280 883 Hop 18 | . . . . . . . . . . . . . . . . . . 4 . 1 . . . 2 6 1 4 Pick Up 96 | 1 2 21 1 1 . 7 2 2 11 5 9 3 2 3 9 7 . 7 . . . . . . 3 . . Fast Attach 140 | 7 7 4 2 . . 9 2 3 4 4 15 9 1 15 1 7 1 17 . 3 . 1 . 5 14 1 8 Attach 79 | . 1 1 . . . 6 3 . 5 7 9 6 4 3 2 11 . 8 . . . . . 1 9 1 2 Detach 38 | . 1 . . . . 4 1 . 1 3 5 3 2 2 . 4 . 2 . . . . . 1 5 2 2 Swap 111 | . 3 9 2 2 . 11 7 6 7 8 10 12 . 8 3 14 . 6 . . . . . . 2 . 1 Drop 146 | 1 2 20 4 2 . 16 3 10 12 5 7 6 4 14 4 10 . 12 . 2 . . . 2 5 1 4 Fire 1114 | . 64 58 27 . 1 114 77 25 133 130 89 39 11 60 45 79 11 69 . 9 . 22 . . 11 2 38 Melee 93 | . . . . . . . . . . . 33 17 . 7 . . . 3 1 4 . 3 . . 10 1 14 Ram 2 | . . . . . . . . . . . . . . . . . . . . . . . . . . . 2 Kick 10 | . . . . . . . . . 2 . . . . 1 . . . 7 . . . . . . . . . Crush 2 | . 2 . . . . . . . . . . . . . . . . . . . . . . . . . . Escape Stasis 83 | . . . . . . . 15 . . 12 . . . 5 10 . . 18 . . . . . 4 18 . 1 Rewire 16 | . . . . . . . . . 2 2 3 2 . 4 . 2 . 1 . . . . . . . . . Trap 35 | . . . . . . . . . . . . . . 10 . 25 . . . . . . . . . . . Miscellaneous . | . . . . . . . . . . . . . . . . . . . . . . . . . . . . Route ------- -11/Junkyard -10/Materials (discovered 3 exits: *Mat x2 / [*Min]) -9/Materials (discovered 3 exits: *Mat x2 / [*Min]) -9/Mines (discovered 4 exits: *Mat x2 / *Exi / [*Zio]) -9/Exiles -8/Mines -8/Materials (discovered 3 exits: *Fac x2 / Gar) -8/Garrison (discovered 2 exits: *Mat x2) -8/Materials -7/Factory (discovered 4 exits: *Fac / [*Sto] / [*Low] / Gar) -7/Garrison (discovered 2 exits: *Fac x2) -7/Factory (discovered 6 exits: *Fac x4 / [*Sto] / [*Low]) -6/Factory (discovered 4 exits: *Fac x2 / Low x2) -6/Waste -6/Factory (discovered 4 exits: *Fac x3 / Gar) -6/Garrison -5/Factory -5/Waste -5/Factory (discovered 2 exits: [*Upp] / [*Ext]) -5/Upper Caves -5/Upper Caves (discovered 2 exits: *Fac / [*War]) -5/Warlord -4/Proximity Caves -4/Factory -4/DSF -3/Research (discovered 2 exits: *Res / [*Tes]) -2/Research (discovered 4 exits: *Acc x3 / DSF) -1/Access History --------- Turn | Location | Event 5 | -11/Junkyard | Discovered new exit (range 15) 72 | -11/Junkyard | Entered Materials 189 | -10/Materials | Discovered new exit (range 7) 300 | -10/Materials | Discovered new exit (range 6) 312 | -10/Materials | Build established: Mutant 471 | -10/Materials | Central database locked down 514 | -10/Materials | Discovered new exit (range 5) 598 | -10/Materials | Core integrity fell below 50% 646 | -10/Materials | Lost 4 parts (1p1n1u1w) 705 | -10/Materials | Entered another Materials area 705 | -9/Materials | Evolved 2 slots: Propulsion x1, Weapon x1 1051 | -9/Materials | Discovered new exit (range 14) 1079 | -9/Materials | Build established: Tank 1566 | -9/Materials | Discovered new exit (range 16) 1689 | -9/Materials | Discovered new exit (range 11) 1701 | -9/Materials | Entered Mines 1750 | -9/Mines | A Derelict revealed a hidden shortcut to a safe place 1765 | -9/Mines | Identified exit to Materials 1866 | -9/Mines | Learned location of Storage (-7) 1874 | -9/Mines | Found a damaged Exp. Sensor Array with a note attached 1911 | -9/Mines | Assembled infested the area 2159 | -9/Mines | Discovered exit to Materials (range 12) 2309 | -9/Mines | Received a Mining Laser from a helpful Derelict 2323 | -9/Mines | Deemed a non-threat by the Exiles lab entrance 2323 | -9/Mines | Discovered new exit (range 5) 2328 | -9/Mines | Entered Exiles 2328 | -9/Exiles | Accompanied by 1 ally 2357 | -9/Exiles | Met 8R-AWN 2379 | -9/Exiles | Met EX-HEX 2414 | -9/Exiles | Met EX-BIN 2429 | -9/Exiles | Aligned with FarCom system 2430 | -9/Exiles | Given EX-Vault access code 2459 | -9/Exiles | Opened EX-Vault 2467 | -9/Exiles | Found Gui. Plasma Cannon 2491 | -9/Exiles | Warned to stay clear of 0b10 Research branches 2528 | -9/Exiles | Met EX-DEC 2657 | -9/Exiles | Discovered new exit (range 14) 2670 | -9/Exiles | Left Exiles lab with Gui. Plasma Cannon 2670 | -9/Exiles | Entered Mines 2697 | -8/Mines | Discovered exit to Materials (range 6) 2709 | -8/Mines | Entered Materials 2709 | -8/Materials | Evolved 2 slots: Utility x1, Weapon x1 3325 | -8/Materials | Build established: Skirmisher 3330 | -8/Materials | Repaired Hpw. Shotgun 3580 | -8/Materials | Discovered new exit (range 16) 3939 | -8/Materials | Repaired Enh. Autogun 3980 | -8/Materials | Repaired Hpw. Shotgun 4925 | -8/Materials | Discovered new exit (range 5) 5279 | -8/Materials | Identified exit to Garrison 5280 | -8/Materials | Entered Garrison 5311 | -8/Garrison | Triggered checkpoint 5456 | -8/Garrison | Garrison Relay disabled 5543 | -8/Garrison | Triggered checkpoint 5577 | -8/Garrison | Triggered checkpoint 5615 | -8/Garrison | Triggered checkpoint 5675 | -8/Garrison | Triggered checkpoint 5716 | -8/Garrison | Destroyed 10 combat bots 5816 | -8/Garrison | Discovered new exit (range 10) 5916 | -8/Garrison | Triggered checkpoint 6002 | -8/Garrison | Garrison Relay disabled 6167 | -8/Garrison | Installed Relay Interface Framework 6201 | -8/Garrison | Discovered new exit (range 11) 6225 | -8/Garrison | Entered Materials 6502 | -8/Materials | Repaired Broken Enh. Autogun 6625 | -8/Materials | First assault squad dispatched 6965 | -8/Materials | Discovered new exit (range 16) 7002 | -8/Materials | Entered Factory 7002 | -7/Factory | Evolved 2 slots: Utility x2 7329 | -7/Factory | Build established: Hacker-Skirmisher 7338 | -7/Factory | Discovered new exit (range 8) 7630 | -7/Factory | Discovered new exit (range 8) 7998 | -7/Factory | Discovered new exit (range 5) 8222 | -7/Factory | Repaired Enh. Autogun 8652 | -7/Factory | Central database locked down 9317 | -7/Factory | Garrison activated, responded to threat 9342 | -7/Factory | Destroyed 7 combat bots 10602 | -7/Factory | First assault squad dispatched 10915 | -7/Factory | Identified exit to Garrison 11002 | -7/Factory | Entered Garrison 11002 | -7/Garrison | Accompanied by 3 allies 11078 | -7/Garrison | Triggered checkpoint 11134 | -7/Garrison | Triggered checkpoint 11294 | -7/Garrison | Destroyed 8 combat bots 11306 | -7/Garrison | Triggered checkpoint 11372 | -7/Garrison | Triggered checkpoint 11491 | -7/Garrison | Spotted B-75 Beast 11719 | -7/Garrison | Destroyed B-75 Beast 11828 | -7/Garrison | Triggered checkpoint 11904 | -7/Garrison | Discovered new exit (range 10) 11941 | -7/Garrison | Triggered checkpoint 12000 | -7/Garrison | Garrison Relay disabled 12084 | -7/Garrison | Triggered checkpoint 12093 | -7/Garrison | Build established: Mutant 12140 | -7/Garrison | Discovered new exit (range 14) 12186 | -7/Garrison | Expanded RIF knowledge: Patrol Navigation 12293 | -7/Garrison | Garrison Relay disabled 12310 | -7/Garrison | Triggered checkpoint 12352 | -7/Garrison | Entered Factory 12601 | -7/Factory | Build established: Bothacker-Mutant 12832 | -7/Factory | Discovered new exit (range 15) 12917 | -7/Factory | Core integrity fell below 50% 13321 | -7/Factory | Discovered new exit (range 6) 13896 | -7/Factory | Fabricated Imp. System Guard? 14166 | -7/Factory | Found Prototype Launcher 14166 | -7/Factory | Identified Rocket Array 14304 | -7/Factory | Discovered new exit (range 4) 14577 | -7/Factory | Discovered new exit (range 11) 14646 | -7/Factory | Discovered new exit (range 11) 14842 | -7/Factory | Build established: Hacker-Mutant 15092 | -7/Factory | Repaired Imp. Carbon-fiber Leg 15930 | -7/Factory | Discovered new exit (range 5) 16106 | -7/Factory | Repaired Remote Datajack? 16245 | -7/Factory | Identified exit to Factory 16303 | -7/Factory | Entered another Factory area 16303 | -6/Factory | Accompanied by 1 ally 16303 | -6/Factory | Evolved 2 slots: Power x1, Utility x1 16436 | -6/Factory | Identified exit to Lower Caves 16460 | -6/Factory | Build established: Bothacker-Mutant 17435 | -6/Factory | Fabricated Mic. Antimatter Reactor? 17799 | -6/Factory | Repaired Flexi-carbon Leg 17945 | -6/Factory | Discovered new exit (range 5) 18003 | -6/Factory | Crushed by falling debris 18034 | -6/Factory | Lost 3 parts (2u1w) 18281 | -6/Factory | Discovered new exit (range 8) 18309 | -6/Factory | Build established: Mutant 18788 | -6/Factory | Sucked down chute 18788 | -6/Factory | Entered Waste 18791 | -6/Waste | Spotted C-40 Crusher 18795 | -6/Waste | 1 allies followed down the chute 18827 | -6/Waste | Spotted C-40 Crusher 18827 | -6/Waste | Spotted C-40 Crusher 18827 | -6/Waste | Spotted C-40 Crusher 18827 | -6/Waste | Spotted C-40 Crusher 18829 | -6/Waste | Spotted C-40 Crusher 19029 | -6/Waste | Discovered new exit (range 12) 19095 | -6/Waste | Warlord forces began an assault 19199 | -6/Waste | Allies destroyed C-40 Crusher 19211 | -6/Waste | Found Damper Plating 19451 | -6/Waste | Entered Factory 19451 | -6/Factory | Accompanied by 16 allies 19994 | -6/Factory | Build established: Skirmisher 20178 | -6/Factory | Discovered new exit (range 15) 20401 | -6/Factory | Discovered new exit (range 5) 20751 | -6/Factory | P-60 Hacker assimilated allied YN-5UD(g) 21108 | -6/Factory | Build established: Hacker-Skirmisher 21130 | -6/Factory | Discovered new exit (range 9) 21201 | -6/Factory | First assault squad dispatched 21895 | -6/Factory | Build established: Hacker-Mutant 22487 | -6/Factory | Identified exit to Garrison 22495 | -6/Factory | Entered Garrison 22495 | -6/Garrison | Accompanied by 2 allies 22552 | -6/Garrison | Triggered checkpoint 22623 | -6/Garrison | Garrison Relay disabled 23377 | -6/Garrison | Build established: Bothacker-Skirmisher 23467 | -6/Garrison | Expanded RIF knowledge: Coupler Efficiency 23550 | -6/Garrison | Discovered new exit (range 14) 23602 | -6/Garrison | Triggered checkpoint 23636 | -6/Garrison | Garrison Relay disabled 23789 | -6/Garrison | Entered Factory 23789 | -5/Factory | Accompanied by 2 allies 23789 | -5/Factory | Evolved 2 slots: Propulsion x1, Utility x1 23996 | -5/Factory | Build established: Bothacker-Mutant 24166 | -5/Factory | Discovered new exit (range 3) 24919 | -5/Factory | Lost 3 parts (1p1n1w) 25759 | -5/Factory | Lost 3 parts (1p1u1w) 25797 | -5/Factory | Fabricated I-47 Archangel (x1) 26658 | -5/Factory | Central database locked down 27000 | -5/Factory | Fabricated P-60 Hacker (x2) 27272 | -5/Factory | Manually triggered Chute Trap 27272 | -5/Factory | Sucked down chute 27272 | -5/Factory | Entered Waste 27287 | -5/Waste | EMP discharged 27296 | -5/Waste | Spotted C-40 Crusher 27303 | -5/Waste | Spotted C-40 Crusher 27324 | -5/Waste | Spotted C-40 Crusher 27345 | -5/Waste | 7 allies followed down the chute 27346 | -5/Waste | Spotted C-40 Crusher 27359 | -5/Waste | Hacker 6c assimilated hostile C-40 Crusher 27376 | -5/Waste | Hacker 6c assimilated hostile C-40 Crusher 27387 | -5/Waste | EMP discharged 27387 | -5/Waste | System corruption reached 10% 27400 | -5/Waste | Spotted C-40 Crusher 27429 | -5/Waste | Spotted C-40 Crusher 27462 | -5/Waste | Allies destroyed C-40 Crusher 27487 | -5/Waste | EMP discharged 27576 | -5/Waste | Discovered new exit (range 14) 27587 | -5/Waste | EMP discharged 27587 | -5/Waste | System corruption reached 30% 27656 | -5/Waste | Entered Factory 27656 | -5/Factory | Accompanied by 4 allies 27954 | -5/Factory | Fabricated M-28 Smith (x1) 28162 | -5/Factory | Build established: Hacker-Mutant 28996 | -5/Factory | P-70 Sage assimilated allied Crusher 6b 29007 | -5/Factory | Crushed by Compactor (1 part destroyed, 2 dropped) 29054 | -5/Factory | Crushed by Compactor (1 part destroyed, 1 dropped) 29085 | -5/Factory | Lost 10 parts (2p3n1u4w) 29268 | -5/Factory | Fabricated Adv. System Restoration Module (x2) 29563 | -5/Factory | Discovered new exit (range 10) 29746 | -5/Factory | Adv. Hacking Suite fried by hacking feedback 29761 | -5/Factory | Discovered new exit (range 7) 29764 | -5/Factory | Entered Upper Caves 29824 | -5/Upper Caves | Discovered new exit (range 19) 29832 | -5/Upper Caves | Entered another Upper Caves area 29835 | -5/Upper Caves | Learned Factory emergency access door positions 29835 | -5/Upper Caves | Discovered new exit (range 12) 30035 | -5/Upper Caves | Encountered a Warlord checkpoint 30041 | -5/Upper Caves | Discovered new exit (range 11) 30046 | -5/Upper Caves | Entered Warlord 30060 | -5/Warlord | Discovered new exit (range 8) 30063 | -5/Warlord | Entered Proximity Caves 30125 | -4/Proximity Caves | Core integrity fell below 50% 30149 | -4/Proximity Caves | Destroyed 7 combat bots 30151 | -4/Proximity Caves | Learned Research stockpile data 30191 | -4/Proximity Caves | Spotted B-86 Titan 30206 | -4/Proximity Caves | Attracted the attention of an 0b10 outpost 30283 | -4/Proximity Caves | Discovered new exit (range 5) 30303 | -4/Proximity Caves | Entered Factory 30303 | -4/Factory | Accompanied by 1 ally 30303 | -4/Factory | Evolved 2 slots: Utility x2 30338 | -4/Factory | Identified exit to DSF 30352 | -4/Factory | Entered DSF 30352 | -4/DSF | Accompanied by 1 ally 30375 | -4/DSF | Additional patrols routed to DSF 30398 | -4/DSF | Discovered new exit (range 17) 30430 | -4/DSF | Entered Research 30430 | -3/Research | Evolved 2 slots: Utility x2 30436 | -3/Research | Found Prototype Processor 30436 | -3/Research | Identified Exp. Terrain Scan Processor 30456 | -3/Research | Lost 4 parts (1p2u1w) 30557 | -3/Research | Discovered new exit (range 21) 30703 | -3/Research | Found Unknown Launcher 30704 | -3/Research | Identified Fusion Bomb Launcher 30741 | -3/Research | Discovered new exit (range 22) 30836 | -3/Research | Spotted B-86 Titan 30868 | -3/Research | Fabricated Hacking Suite (x1) 30887 | -3/Research | Fabricated Signal Interpreter (x2) 30925 | -3/Research | Found Prototype Processor 30925 | -3/Research | Identified Exp. Signal Interpreter 30939 | -3/Research | Identified exit to Research 30940 | -3/Research | Entered another Research area 30940 | -2/Research | Evolved 2 slots: Utility x2 31023 | -2/Research | Discovered new exit (range 12) 31042 | -2/Research | Identified exit to DSF 31044 | -2/Research | Identified exit to Access 31050 | -2/Research | Entered Access 31050 | -1/Access | Accompanied by 1 ally 31050 | -1/Access | Evolved 2 slots: Propulsion x1, Utility x1 31109 | -1/Access | Fabricated H-66 Slayer? 31202 | -1/Access | Spotted B-99 Colossus 31232 | -1/Access | Hacking Suite fried by hacking feedback 31241 | -1/Access | Spotted B-99 Colossus 31263 | -1/Access | Lost 5 parts (1p2n2u) 31347 | -1/Access | Spotted B-99 Colossus 31451 | -1/Access | Crushed by falling debris 31482 | -1/Access | Lost 3 parts (3u) 31553 | -1/Access | Core integrity fell below 50% 31562 | -1/Access | Core integrity fell below 20% 31585 | -1/Access | Destroyed by G-73 Enforcer with Phase Gun Last Messages --------------- 31564_ Penetrated by Slug. 31564_ Slug penetrates Terminal. 31564_ U-05 Engineer lays Concrete. 31564_ Penetrated by Slug. 31564_ Cmb. Gravmag System destroyed. 31564_ Slug penetrates Wall. 31564_ Penetrated by Slug. 31564_ Slug penetrates Wall. 31565_ Acquired 1 matter. 31565_ Penetrated by Slug. 31565_ U-05 Engineer lays Concrete. 31566_ Wall collapses. 31566_ Field Propulsion Array destroyed. 31567_ Slug penetrates Wall. 31567_ G-73 Enforcer suffers critical hit (Burn). 31567_ U-05 Engineer lays Concrete. 31570_ T-07 Excavator destroyed. 31573_ K-01 Serf collects debris. 31573_ Field Propulsion Array destroyed. 31574_ Slammed into K-01 Serf. Map ----- +----------------------------------------------------+ | ??????????????????????? ?????????????????????????? | | ??????????????????????? ########?????????????????? | | ??????????????????????? #?????????????????? | | ??????????????????????? #?????????????????? | | #?????????????????????? k #?????????????????? | | #?????????????????????? #?????????????????? | | #?????????????????????? #?????????????????? | | #?????????????????????? #?????????????????? | | #?????????????????????? #?????????????????? | | #?????????############## #?????????????????? | | ??????????# # g #?????????????????? | | ########### ! #gg #?????????????????? | | = / = /kl #?????????????????? | | ! #### # #?????????????????? | | #??# # #??????? ? ??????? | | """ #??# # ####### ?????? | | """ #??# "" # t k ?????? | | """ #??# "" # ????? | | """ #??# """""" # ????? | | """ #??# """""" + """" "????? | | #??# "" # ! ""R"" ""?????? | | #??# "" # "" "" """?????? | | #??############## k ""?????? | | ???????????????## ""?????? | | ####???????????????# gA " ????? | | ###+##??????????????????#@ ??? | | ????????????????????????# " g ??? | | ????????????????????????# """ ??? | | ????????????????????????# """ ???? | | ????????????????????????#k " ????? | | ????????????????????????# R ????? | | ????????????????????????# ????? | | ???????????????????????? ?????? | | ???????????????????????? ############## ??????? | | ???????????????????????? #?????????????? ??????? | | ???????????????????????? #?????????????????????? | | ???????????????????????? #?????????????????????? | | ???????????????????????? #?????????????????????? | | ???????????????????????? #?????????????????????? | | ???????????????????????? #?????????????????????? | | ???????????????????????? #?????????????????????? | | ???????????????????????? #?????????????????????? | | ???????????????????????? +?????????????????????? | | ??????????????????????? ??????????????????????? | | ??????????????????????? ??????????????????????? | | ??????????????????????? ??????????????????????? | | ???????????????????????? ??????????????????????? | | ?????????????????????????????????????????????????? | | ?????????????????????????????????????????????????? | | ?????????????????????????????????????????????????? | +----------------------------------------------------+ Best States ------------- Heat Dissipation 61 Energy Generation 29 Energy Capacity 500 Matter Stores 300 Matter Capacity 300 Sight Range 22 Terrain Scan Range 20 Terrain Scan Density 1010 Armor Coverage 600 Resistance: KI 30 Evasion (%) 63 Targeting Accuracy 8 Recoil Reduction 4 Offensive Hacking 40 Defensive Hacking 10 Relay Coupler Types 3 Relay Coupler Value 87 Authchip Count 2 Item Schematics ----------------- Hacking Suite | -9/Materials | Scanalyzed Hrd. Light Armor Plating | -9/Materials | Scanalyzed Med. Storage Unit | -9/Materials | Scanalyzed Signal Interpreter | -9/Materials | Scanalyzed Terrain Scanner | -9/Materials | Extracted Hvy. EM Pulse Gun | -9/Materials | Extracted Sensor Array | -9/Materials | Extracted Propulsion Shielding | -9/Materials | Extracted Lgt. Assault Rifle | -9/Materials | Extracted Hcp. Matter Pod | -9/Materials | Extracted Imp. Hover Unit | -9/Materials | Extracted Imp. Treads | -9/Materials | Extracted ECM Suite | -9/Materials | Extracted Plasma Cutter | -9/Materials | Extracted Cooling System | -9/Materials | Extracted System Shield | -8/Materials | Scanalyzed Hpw. Tractor Beam | -8/Materials | Scanalyzed Enh. Autogun | -8/Materials | Scanalyzed Titanium Leg | -8/Materials | Hacked Hrd. Medium Armor Plating | -8/Materials | Scanalyzed Pulse Rifle | -8/Materials | Scanalyzed Nuclear Core | -8/Materials | Scanalyzed Imp. Aluminum Leg | -8/Materials | Scanalyzed Imp. Heat Sink | -8/Materials | Scanalyzed Particle Cannon | -8/Materials | Extracted Imp. Flight Unit | -8/Materials | Extracted System Restoration Module | -7/Factory | Hacked Graphene Brace | -7/Factory | Scanalyzed Imp. Cooling System | -7/Factory | Scanalyzed Gauss Rifle | -7/Factory | Scanalyzed Hrd. Heavy Armor Plating | -7/Factory | Scanalyzed Recoil Stabilizer | -7/Factory | Scanalyzed Adv. Targeting Computer | -7/Factory | Scanalyzed Hardlight Generator | -7/Factory | Scanalyzed Imp. Carbon-fiber Leg | -7/Factory | Scanalyzed Arm. Leg | -7/Factory | Hacked Cld. Particle Cannon | -6/Factory | Scanalyzed Rocket Array | -6/Factory | Scanalyzed Remote Datajack | -6/Factory | Scanalyzed Smartbomb Launcher | -6/Factory | Hacked Gui. EMP Blaster | -5/Factory | Hacked Adv. System Restoration Module | -5/Factory | Hacked Robot Schematics ------------------ A-02 Transporter | -10/Materials | Hacked M-13 Machinist | -8/Materials | Hacked O-24 Administrator | -8/Materials | Hacked M-28 Smith | -7/Factory | Hacked Y-54 Guardian | -7/Factory | Hacked P-60 Hacker | -7/Factory | Hacked H-55 Commando | -7/Factory | Hacked B-48 Gladiator | -7/Factory | Hacked I-36 Angel | -6/Factory | Hacked H-66 Slayer | -6/Factory | Hacked A-15 Conveyor | -6/Factory | Hacked I-47 Archangel | -5/Factory | Hacked P-70 Sage | -5/Factory | Hacked Fabricated ------------ Imp. System Guard | x2 | -7/Factory | Preloaded Mic. Antimatter Reactor | x2 | -6/Factory | Preloaded I-47 Archangel | x1 | -5/Factory P-60 Hacker | x2 | -5/Factory M-28 Smith | x1 | -5/Factory Adv. System Restoration Module | x2 | -5/Factory Hacking Suite | x1 | -3/Research | Authchip Signal Interpreter | x2 | -3/Research H-66 Slayer | x2 | -1/Access | Authchip Alien Tech Used ----------------- None Achievements -------------- None Challenges ------------ None Game ------ Seed CorePhysicsSlayer Manual? 0 Play Time 06:58:14 Cumulative 304.1 hours Start 2023.09.13 @ 13:50:19 End 2023.09.13 @ 22:12:28 Sessions 3 Manual Loads 0 Difficulty Rogue Special Mode None Game No. 200 Rogue 197 Adventurer 3 Explorer 0 Win Type - Total 5 Types 4/0/1/0/0/0/0/0/0 Lore% 71 Gallery% 75 Achievement% 64 Wizard Run 0 Options --------- ASCII 0 Keyboard 0 Movement Numpad Keybinds 0 Fullscreen 1 Font 18/SmallcapsGlow Map View 76x50 Tactical HUD 1 Map Filters NONE Filters NONE Steam 1 RUN: 03f58c55-39c1-40b8-9ca4-16fe3709c344